bitfinex/quotes_SOLUSD_20250416
["timestamp","ask_amount","ask_price","bid_price","bid_amount"]
[1744820805831,1e-08,128.45,128.44,371.7631455]
[1744820811457,0.063,128.49,128.47,44.64964886]
[1744820811639,0.063,128.49,128.48,52.23740897]
[1744820811838,0.063,128.51,128.48,132.93740896]
[1744820812038,0.063,128.51,128.5,40.45740897]
[1744820812239,0.063,128.51,128.5,121.15740896]
[1744820813367,0.063,128.51,128.5,128.93951012]
[1744820814558,0.063,128.51,128.5,80.69999999]
[1744820814738,0.063,128.51,128.5,88.48210115]
[1744820815569,0.063,128.51,128.5,110.28986126]
[1744820815765,0.063,128.51,128.5,88.48210115]
[1744820817269,0.063,128.51,128.5,110.28986126]
[1744820817577,0.063,128.51,128.5,128.93951012]
[1744820820675,0.063,128.51,128.5,107.13175001]
[1744820820852,0.063,128.51,128.5,128.93951012]
[1744820824086,0.063,128.51,128.5,107.13175001]
[1744820824370,0.063,128.51,128.5,128.93951012]
[1744820828669,0.063,128.51,128.5,140.71951012]
[1744820829168,0.063,128.51,128.5,92.47999999]
[1744820829351,0.063,128.51,128.5,114.2877601]
[1744820829866,0.063,128.51,128.5,11.78]
[1744820832985,47.87076011,128.51,128.46,254.52]
[1744820833268,0.063,128.51,128.48,21.80776011]
[1744820833474,0.063,128.51,128.49,21.80776011]
[1744820834074,0.063,128.51,128.48,21.80776011]
[1744820834757,21.80776011,128.5,128.46,254.52]
[1744820835155,0.063,128.51,128.46,276.32776011]
[1744820835453,21.87076011,128.51,128.47,21.80776011]
[1744820835650,0.063,128.51,128.48,21.80776011]
[1744820835865,0.063,128.51,128.49,21.80776011]
[1744820836474,0.063,128.51,128.48,21.80776011]
[1744820836783,29.65262756,128.51,128.47,21.80776011]
[1744820836979,29.65262756,128.51,128.46,335.21999999]
[1744820837275,21.80776011,128.47,128.46,11.78]
[1744820837475,21.80776011,128.48,128.46,11.78]
[1744820837976,26.0,128.5,128.47,21.80776011]
[1744820838151,7.84486745,128.51,128.48,21.80776011]
[1744820838353,7.84486745,128.51,128.46,19.56446213]
[1744820838354,7.84486745,128.51,128.47,21.80776011]
[1744820839078,21.80776011,128.49,128.46,11.78]
[1744820839485,21.80776011,128.48,128.46,11.78]
[1744820839671,21.80776011,128.47,128.46,11.78]
[1744820839884,28.27066011,128.47,128.46,11.78]
[1744820840892,36.05457853,128.47,128.46,11.78]
[1744820841177,55.59076114,128.49,128.46,11.78]
[1744820841773,21.80776011,128.48,128.46,11.78]
[1744820842076,21.80776011,128.47,128.46,11.78]
[1744820842656,21.80776011,128.48,128.46,11.78]
[1744820842964,29.59113119,128.48,128.46,11.78]
[1744820843167,26.0,128.49,128.46,11.78]
[1744820843168,55.59057857,128.49,128.46,11.78]
[1744820843487,33.78281846,128.49,128.46,11.78]
[1744820844087,55.59057857,128.49,128.46,11.78]
[1744820844882,6.4629,128.5,128.46,41.37208002]
[1744820844883,14.24528242,128.5,128.46,41.37208002]
[1744820845057,36.05304253,128.5,128.46,33.58776011]
[1744820846263,36.05304253,128.5,128.46,11.78]
[1744820846872,36.05304253,128.5,128.46,33.58776011]
[1744820847060,14.24528242,128.5,128.46,33.58776011]
[1744820847263,7.78238242,128.5,128.47,21.80776011]
[1744820848480,7.78238242,128.5,128.46,11.78]
[1744820848680,29.59014253,128.5,128.46,33.58776011]
[1744820848882,7.78238242,128.5,128.46,33.58776011]
[1744820850093,7.78238242,128.5,128.46,11.78]
[1744820850094,21.80776011,128.47,128.46,11.78]
[1744820851196,29.59167853,128.47,128.46,11.78]
[1744820851489,26.0,128.48,128.46,11.78]
[1744820851676,7.78210116,128.5,128.47,21.80776011]
[1744820853485,21.80776011,128.49,128.46,11.78]
[1744820854497,7.78331257,128.48,128.46,11.78]
[1744820854997,29.59107268,128.48,128.46,11.78]
[1744820855992,7.78331257,128.48,128.46,11.78]
[1744820856565,29.59107268,128.48,128.46,11.78]
[1744820857275,7.78331257,128.48,128.46,11.78]
[1744820857795,29.59078674,128.49,128.46,11.78]
[1744820858094,7.78302663,128.49,128.46,11.78]
[1744820858383,29.59078674,128.49,128.46,11.78]
[1744820859677,7.78302663,128.49,128.46,11.78]
[1744820859870,7.78302663,128.49,128.46,33.58776011]
[1744820860078,7.78220121,128.5,128.46,41.37220024]
[1744820860276,29.58996132,128.5,128.46,33.58776011]
[1744820860887,7.78220121,128.5,128.47,21.80776011]
[1744820861099,26.0,128.49,128.47,21.80776011]
[1744820865094,7.78218983,128.5,128.47,21.80776011]
[1744820866200,7.78218983,128.5,128.46,41.37217289]
[1744820866802,47.87076011,128.51,128.48,21.80776011]
[1744820866803,26.063,128.51,128.48,21.80776011]
[1744820867302,33.84449739,128.51,128.48,21.80776011]
[1744820867500,0.063,128.51,128.49,21.80776011]
[1744820867703,0.063,128.51,128.5,21.80776011]
[1744820872303,0.063,128.51,128.49,21.80776011]
[1744820872595,0.063,128.51,128.48,21.80776011]
[1744820872789,0.063,128.51,128.47,21.80776011]
[1744820873502,7.8444956,128.51,128.47,21.80776011]
[1744820873708,7.8444956,128.51,128.47,29.59154494]
[1744820875300,0.063,128.51,128.48,13.95353187]
[1744820876508,7.8444956,128.51,128.48,13.95353187]
[1744820877703,0.063,128.51,128.49,13.95353187]
[1744820877883,0.063,128.51,128.5,13.95353187]
[1744820878084,0.063,128.51,128.49,14.23785501]
[1744820880106,0.063,128.51,128.49,22.02043975]
[1744820880311,0.063,128.51,128.5,13.95353187]
[1744820881113,0.063,128.51,128.49,14.38001658]
[1744820881319,0.063,128.51,128.48,14.23785501]
[1744820882421,7.8444956,128.51,128.48,0.28432314]
[1744820883821,7.8444956,128.51,128.48,14.23785501]
[1744820884124,0.063,128.51,128.5,0.28432314]
[1744820884300,0.063,128.51,128.5,14.23785501]
[1744820885132,0.063,128.51,128.5,25.99785501]
[1744820885597,0.063,128.51,128.5,12.04432314]
[1744820885802,0.063,128.51,128.5,11.76]
[1744820886421,0.063,128.51,128.5,12.04432314]
[1744820887033,0.063,128.51,128.5,25.99785501]
[1744820887402,0.063,128.51,128.5,33.92211774]
[1744820890333,0.063,128.51,128.5,11.76]
[1744820891533,14.01653187,128.51,128.5,11.76]
[1744820891706,14.01653187,128.51,128.46,11.76]
[1744820891907,21.73745029,128.47,128.46,11.76]
[1744820892431,1.5879,128.46,128.43,0.03]
[1744820892627,13.95353187,128.44,128.43,0.03]
[1744820893134,7.7343,128.46,128.43,0.03]
[1744820893344,21.83195755,128.44,128.43,0.03]
[1744820894134,29.61769408,128.44,128.43,0.03]
[1744820898743,74.26734294,128.44,128.43,1e-08]
[1744820899933,48.26734294,128.44,128.43,1e-08]
[1744820901523,48.40950451,128.44,128.43,1e-08]
[1744820901726,66.48160641,128.42,128.41,0.03]
[1744820902244,55.61890662,128.42,128.41,0.03]
[1744820903148,132.01590641,128.46,128.41,0.03]
[1744820903149,7.78656231,128.43,128.41,0.03]
[1744820903637,29.61851986,128.43,128.41,0.03]
[1744820904344,21.83195755,128.42,128.41,0.03]
[1744820904838,66.48160641,128.42,128.41,0.03]
[1744820905040,66.48160641,128.42,128.4,0.03]
[1744820905041,24.89564886,128.41,128.4,0.03]
[1744820905245,26.0,128.39,128.38,0.03]
[1744820905453,66.48160641,128.39,128.38,0.03]
[1744820905651,18.64964886,128.38,128.36,0.03]
[1744820905945,42.22926798,128.37,128.36,0.03]
[1744820906316,49.87708849,128.37,128.36,0.03]
[1744820906519,31.22743963,128.37,128.36,0.03]
[1744820907911,26.0,128.38,128.36,0.03]
[1744820908123,29.6210035,128.39,128.36,0.03]
[1744820908530,55.6210035,128.39,128.36,0.03]
[1744820909846,33.78904595,128.39,128.36,0.03]
[1744820910018,55.6207847,128.39,128.36,0.03]
[1744820913041,26.0,128.39,128.36,21.86195755]
[1744820913240,26.0,128.39,128.36,0.03]
[1744820913438,21.83195755,128.38,128.36,0.03]
[1744820913642,47.83195755,128.37,128.36,0.03]
[1744820914630,26.0,128.37,128.36,0.03]
[1744820914949,47.83195755,128.37,128.36,0.03]
[1744820915445,55.62193963,128.37,128.36,0.03]
[1744820918448,47.83195755,128.37,128.36,0.03]
[1744820918632,26.0,128.37,128.36,0.03]
[1744820918818,55.62193963,128.37,128.36,0.03]
[1744820924650,18.64964886,128.36,128.34,0.03]
[1744820924946,62.31356396,128.35,128.34,0.03]
[1744820925148,44.64964886,128.32,128.31,0.03]
[1744820925457,53.95925755,128.32,128.31,1e-08]
[1744820925964,72.75106798,128.32,128.31,1e-08]
[1744820926254,76.73719099,128.32,128.31,1e-08]
[1744820926634,84.53020844,128.32,128.31,1e-08]
[1744820927236,84.38804687,128.32,128.31,1e-08]
[1744820927755,84.53020844,128.32,128.31,1e-08]
[1744820928958,84.38804687,128.32,128.31,1e-08]
[1744820929253,74.27462386,128.32,128.31,1e-08]
[1744820929855,55.624975,128.32,128.31,1e-08]
[1744820930748,27.26756981,128.36,128.31,1e-08]
[1744820930936,21.83195755,128.35,128.31,1e-08]
[1744820931253,26.0,128.35,128.31,33.59195756]
[1744820931833,7.79180302,128.34,128.31,33.59195756]
[1744820932030,26.0,128.35,128.31,33.59195756]
[1744820932031,7.79147187,128.35,128.31,41.38552529]
[1744820932245,29.62193963,128.37,128.32,21.83195755]
[1744820932463,26.0,128.36,128.32,21.83195755]
[1744820932934,21.83195755,128.35,128.31,33.59195756]
[1744820934146,55.62349386,128.35,128.31,33.59195756]
[1744820934660,47.83195755,128.32,128.31,11.76000001]
[1744820934839,26.0,128.32,128.31,11.76000001]
[1744820935554,47.83195755,128.32,128.31,11.76000001]
[1744820936155,55.624975,128.32,128.31,11.76000001]
[1744820936458,26.0,128.34,128.31,11.76000001]
[1744820938056,7.79078713,128.36,128.32,21.83195755]
[1744820938258,26.0,128.35,128.32,21.83195755]
[1744820939061,26.0,128.35,128.32,29.90923673]
[1744820939243,7.79078713,128.36,128.32,29.62491359]
[1744820940243,26.0,128.37,128.34,21.83195755]
[1744820940454,47.83195755,128.37,128.33,22.11628069]
[1744820940656,21.83195755,128.36,128.32,21.83195755]
[1744820941644,21.83195755,128.35,128.31,33.59195756]
[1744820942063,21.83195755,128.35,128.31,41.38547898]
[1744820942467,21.83195755,128.35,128.31,19.55352143]
[1744820942665,21.83195755,128.35,128.31,41.38547898]
[1744820942850,21.83195755,128.35,128.31,33.59195756]
[1744820943364,21.83195755,128.35,128.31,41.38549632]
[1744820943862,29.62336849,128.35,128.31,41.38549632]
[1744820944065,21.83195755,128.32,128.31,1e-08]
[1744820944362,47.83195755,128.32,128.31,1e-08]
[1744820944574,40.48160641,128.32,128.31,1e-08]
[1744820945165,40.62376798,128.32,128.31,1e-08]
[1744820945662,40.48160641,128.32,128.31,1e-08]
[1744820945869,44.64964886,128.31,128.3,0.03]
[1744820946072,66.48160641,128.31,128.3,0.03]
[1744820946977,40.48160641,128.31,128.3,0.03]
[1744820947273,47.83195755,128.31,128.3,0.03]
[1744820947439,21.83195755,128.31,128.3,0.03]
[1744820948861,55.62558236,128.31,128.3,0.03]
[1744820949065,48.41739279,128.31,128.29,0.03]
[1744820949365,48.41739279,128.31,128.28,0.03]
[1744820949366,110.74675755,128.3,128.28,0.03]
[1744820949668,62.45572553,128.29,128.28,0.03]
[1744820950568,40.48160641,128.29,128.28,0.03]
[1744820950763,21.83195755,128.29,128.28,0.03]
[1744820951170,29.62679736,128.29,128.28,0.03]
[1744820951682,55.62679736,128.29,128.28,0.03]
[1744820952169,48.27644622,128.29,128.28,0.03]
[1744820952369,26.0,128.23,128.22,0.03]
[1744820952572,47.83195755,128.23,128.22,0.03]
[1744820953570,55.62948496,128.25,128.22,0.03]
[1744820953870,33.79752741,128.25,128.22,0.03]
[1744820954074,55.62948496,128.25,128.22,0.03]
[1744820954450,21.83195755,128.24,128.22,0.03]
[1744820954650,21.83195755,128.23,128.22,0.03]
[1744820955350,29.63044464,128.23,128.22,0.03]
[1744820956866,55.62953194,128.25,128.22,0.03]
[1744820958271,55.62953194,128.25,128.22,22.14628069]
[1744820958272,26.0,128.25,128.22,22.14628069]
[1744820958650,21.83195755,128.28,128.23,21.83195755]
[1744820958855,47.83195755,128.28,128.23,21.83195755]
[1744820959155,21.83195755,128.27,128.23,21.83195755]
[1744820960075,29.62862057,128.26,128.22,30.28228069]
[1744820962284,29.62862057,128.26,128.22,29.99795755]
[1744820962471,21.83195755,128.24,128.22,0.03]
[1744820962665,21.83195755,128.23,128.22,0.03]
[1744820963481,29.63030593,128.24,128.22,0.03]
[1744820965556,7.79834838,128.24,128.22,0.03]
[1744820969790,21.83195755,128.23,128.22,0.03]
[1744820969969,69.6639151,128.23,128.22,0.03]
[1744820970283,47.83195755,128.23,128.22,1e-08]
[1744820970492,62.31356396,128.23,128.22,1e-08]
[1744820970984,66.13794202,128.23,128.22,1e-08]
[1744820971676,29.63044464,128.23,128.22,1e-08]
[1744820973289,55.63044464,128.23,128.22,1e-08]
[1744820973490,29.63044464,128.23,128.22,1e-08]
[1744820975883,33.79848709,128.23,128.22,1e-08]
[1744820976276,55.63044464,128.23,128.22,1e-08]
[1744820980689,33.79848709,128.23,128.22,1e-08]
[1744820981077,29.63044464,128.23,128.22,1e-08]
[1744820981389,55.63044464,128.23,128.22,1e-08]
[1744820984302,19.49165757,128.26,128.22,1e-08]
[1744820984469,21.83195755,128.26,128.22,1e-08]
[1744820984666,21.83195755,128.25,128.22,1e-08]
[1744820984892,7.79787897,128.24,128.22,1e-08]
[1744820985173,26.0,128.26,128.23,0.28432314]
[1744820985372,47.83195755,128.26,128.23,0.28432314]
[1744820986272,26.0,128.26,128.23,0.28432314]
[1744820986699,55.62865858,128.26,128.22,23.47665756]
[1744820986902,55.62865858,128.26,128.22,1.64470001]
[1744820987405,33.79670103,128.26,128.23,0.28432314]
[1744820988602,55.62865858,128.26,128.23,0.28432314]
[1744820989307,26.0,128.26,128.23,22.11628069]
[1744820991186,26.0,128.26,128.23,29.91476116]
[1744820991597,21.83195755,128.29,128.25,21.83195755]
[1744820991813,21.83195755,128.29,128.26,33.85628069]
[1744820991814,7.79530146,128.29,128.26,33.85628069]
[1744820992488,21.83195755,128.27,128.26,11.74]
[1744820992894,29.62801274,128.27,128.26,11.74]
[1744820994023,29.62760972,128.28,128.26,11.74]
[1744820994330,7.79565217,128.28,128.26,11.74]
[1744820995509,21.83195755,128.28,128.26,11.74]
[1744820995716,26.0,128.27,128.26,11.74]
[1744820995887,47.83195755,128.27,128.26,11.74]
[1744820996217,26.0,128.27,128.26,11.74]
[1744820997224,7.79605519,128.27,128.26,11.74]
[1744820997730,29.62801274,128.27,128.26,11.74]
[1744820999331,7.79605519,128.27,128.26,11.74]
[1744820999632,33.79548622,128.28,128.26,11.74]
[1744820999925,29.62684139,128.29,128.26,11.74]
[1744821001023,33.79472029,128.3,128.27,0.28432314]
[1744821001202,21.89495755,128.31,128.27,0.28432314]
[1744821001407,21.89495755,128.31,128.27,22.11628069]
[1744821001613,21.89495755,128.31,128.27,0.28432314]
[1744821001816,29.68867678,128.31,128.27,0.28432314]
[1744821002131,21.89495755,128.31,128.27,29.91231014]
[1744821002415,0.063,128.31,128.3,22.11628069]
[1744821002617,0.063,128.31,128.3,0.28432314]
[1744821002831,0.063,128.31,128.29,0.28432314]
[1744821003599,29.68873744,128.31,128.27,29.53635755]
[1744821003801,29.68873744,128.31,128.28,0.28432314]
[1744821004023,29.68873744,128.31,128.26,11.74]
[1744821004024,21.83195755,128.29,128.26,11.74]
[1744821004711,0.063,128.31,128.28,21.83195755]
[1744821005031,0.063,128.31,128.3,46.96619112]
[1744821005734,0.063,128.31,128.3,54.76042338]
[1744821006913,0.063,128.31,128.3,0.28432314]
[1744821007421,0.063,128.31,128.3,22.11628069]
[1744821007620,0.063,128.31,128.3,21.97411912]
[1744821007818,0.063,128.31,128.3,0.28432314]
[1744821008019,0.063,128.31,128.3,22.11628069]
[1744821008525,0.063,128.31,128.3,0.28432314]
[1744821008708,0.063,128.31,128.3,22.11628069]
[1744821008902,0.063,128.31,128.3,0.14216157]
[1744821009807,21.89495755,128.31,128.28,80.69999999]
[1744821010311,0.063,128.31,128.28,80.69999999]
[1744821011017,0.063,128.31,128.28,102.53195754]
[1744821011434,0.063,128.31,128.29,0.28432314]
[1744821011926,21.89495755,128.31,128.28,80.69999999]
[1744821012123,21.89495755,128.31,128.26,42.88529821]
[1744821012731,21.89495755,128.31,128.28,0.28432314]
[1744821013220,21.83195755,128.3,128.28,0.28432314]
[1744821013725,21.89495755,128.31,128.28,0.28432314]
[1744821014133,7.79423226,128.3,128.28,0.28432314]
[1744821014514,21.83195755,128.29,128.27,0.28432314]
[1744821014925,29.68887297,128.31,128.27,22.11628069]
[1744821016950,21.83195755,128.3,128.27,0.28432314]
[1744821019041,7.79483981,128.29,128.27,0.28432314]
[1744821019547,0.063,128.31,128.28,21.83195755]
[1744821019716,0.063,128.31,128.29,0.28432314]
[1744821020313,0.063,128.31,128.29,22.11628069]
[1744821020625,0.063,128.31,128.3,21.83195755]
[1744821020827,0.063,128.31,128.29,22.11628069]
[1744821021836,0.063,128.31,128.29,0.28432314]
[1744821022334,21.83195755,128.3,128.26,11.88216157]
[1744821022628,21.83195755,128.29,128.26,11.74]
[1744821022833,29.62688634,128.29,128.27,0.28432314]
[1744821023013,7.79492879,128.29,128.26,33.57195755]
[1744821023334,7.79492879,128.29,128.27,0.28432314]
[1744821024240,29.62688634,128.29,128.27,0.28432314]
[1744821024813,7.79451813,128.3,128.27,0.28432314]
[1744821025015,26.063,128.31,128.29,0.28432314]
[1744821025426,26.063,128.31,128.29,22.11628069]
[1744821025938,0.063,128.31,128.29,22.11628069]
[1744821028240,0.063,128.31,128.29,29.91099007]
[1744821029824,0.063,128.31,128.3,21.83195755]
[1744821030024,0.063,128.31,128.3,33.55195755]
[1744821030640,0.063,128.31,128.3,12.00432314]
[1744821031226,0.063,128.31,128.3,33.83628069]
[1744821031645,0.063,128.31,128.3,12.00432314]
[1744821032228,21.89495755,128.31,128.3,11.72]
[1744821033140,47.89495755,128.31,128.3,11.72]
[1744821033347,47.89495755,128.31,128.26,11.72]
[1744821033554,21.83195755,128.27,128.26,11.72]
[1744821033717,29.62788652,128.28,128.26,12.00432314]
[1744821033920,29.62788652,128.28,128.26,11.72]
[1744821035539,21.83195755,128.28,128.26,11.72]
[1744821035752,29.6264688,128.3,128.27,0.28432314]
[1744821035930,21.83195755,128.29,128.27,0.28432314]
[1744821036324,21.83195755,128.28,128.26,11.72]
[1744821036532,21.83195755,128.27,128.26,11.72]
[1744821037825,29.62801274,128.27,128.26,11.72]
[1744821041362,26.0,128.28,128.26,11.72]
[1744821041566,21.83195755,128.27,128.26,11.72]
[1744821042632,21.83195755,128.27,128.22,12.00432315]
[1744821042833,21.83195755,128.25,128.22,19.80335542]
[1744821044665,21.83195755,128.25,128.22,11.72000001]
[1744821044666,21.83195755,128.23,128.22,11.72000001]
[1744821045261,47.83195755,128.25,128.22,19.51902533]
[1744821045556,47.83195755,128.25,128.22,11.72000001]
[1744821045746,21.83195755,128.24,128.22,11.72000001]
[1744821045944,1.5976,128.29,128.23,22.11628069]
[1744821046143,6.7173,128.31,128.23,22.11628069]
[1744821046144,6.7173,128.31,128.26,21.83195755]
[1744821046361,21.83195755,128.3,128.27,11.72]
[1744821046534,26.0,128.28,128.27,11.72]
[1744821047258,21.83195755,128.3,128.27,11.72]
[1744821047461,21.83195755,128.29,128.27,11.72]
[1744821048660,47.83195755,128.28,128.27,11.72]
[1744821050569,55.627405,128.28,128.27,11.72]
[1744821051564,47.83195755,128.28,128.27,11.72]
[1744821051963,26.0,128.28,128.27,11.72]
[1744821052370,0.063,128.31,128.27,11.72]
[1744821052546,47.89495755,128.31,128.28,0.28432314]
[1744821052750,0.063,128.31,128.28,0.28432314]
[1744821052976,21.83195755,128.29,128.27,11.72]
[1744821053645,21.83195755,128.28,128.27,11.72]
[1744821054650,29.627405,128.28,128.27,11.72]
[1744821055270,7.79544745,128.28,128.27,11.72]
[1744821055461,29.627405,128.28,128.27,11.72]
[1744821057876,55.6266818,128.3,128.27,11.72]
[1744821058251,21.83195755,128.29,128.27,11.72]
[1744821059868,21.83195755,128.28,128.27,11.72]
[1744821060665,21.83195755,128.29,128.27,11.72]
[1744821061560,55.6266818,128.3,128.27,11.72]
[1744821061864,47.83195755,128.3,128.27,11.72]
[1744821062078,0.063,128.31,128.28,22.11628069]
[1744821062669,0.063,128.31,128.28,0.28432314]
[1744821062877,21.89495755,128.31,128.28,0.28432314]
[1744821063071,21.83195755,128.3,128.28,0.28432314]
[1744821063572,29.6885968,128.31,128.27,19.51593598]
[1744821063952,28.6885968,128.31,128.27,19.51593598]
[1744821064148,21.83195755,128.31,128.28,0.28432314]
[1744821064348,47.83195755,128.32,128.28,22.11628069]
[1744821064847,55.62522891,128.32,128.28,22.11628069]
[1744821065059,21.83195755,128.31,128.28,0.28432314]
[1744821066174,21.83195755,128.29,128.27,11.72]
[1744821066470,21.83195755,128.3,128.27,19.51602108]
[1744821066769,21.83195755,128.31,128.28,0.28432314]
[1744821067266,26.0,128.32,128.3,0.28432314]
[1744821068161,26.0,128.32,128.3,29.90998173]
[1744821068361,26.0,128.32,128.3,0.28432314]
[1744821072651,7.85419969,128.35,128.3,8.07825871]
[1744821072857,21.83195755,128.34,128.3,29.91021626]
[1744821073078,0.063,128.35,128.33,21.83195755]
[1744821073259,0.063,128.35,128.34,11.7]
[1744821073454,1e-08,128.35,128.34,100.44004867]
[1744821073781,1e-08,128.38,128.36,45.07613357]
[1744821073960,1e-08,128.38,128.37,40.90809112]
[1744821074371,1e-08,128.38,128.37,0.28432314]
[1744821074578,1e-08,128.38,128.37,11.98432314]
[1744821075586,1e-08,128.38,128.37,33.95844226]
[1744821075777,1e-08,128.38,128.37,141.09807319]
[1744821076279,1e-08,128.38,128.37,133.30809111]
[1744821076471,1e-08,128.38,128.37,11.98432314]
[1744821077161,1e-08,128.38,128.37,33.81628069]
[1744821077884,1e-08,128.38,128.37,52.60809112]
[1744821078082,1e-08,128.38,128.37,141.09807319]
[1744821079692,1e-08,128.38,128.37,129.39807319]
[1744821079882,1e-08,128.38,128.37,141.07807319]
[1744821081987,0.063,128.42,128.38,127.30513356]
[1744821082199,0.063,128.42,128.41,73.20939112]
[1744821082359,0.063,128.44,128.43,44.64964886]
[1744821082563,0.063,128.49,128.46,18.64964886]
[1744821082884,0.063,128.49,128.48,22.11628069]
[1744821083086,0.063,128.49,128.48,11.68]
[1744821083587,0.063,128.49,128.48,11.96432314]
[1744821083891,0.063,128.49,128.48,11.68]
[1744821084261,21.89495755,128.49,128.48,11.68]
[1744821084467,47.89495755,128.49,128.45,243.04]
[1744821084763,47.83195755,128.46,128.44,11.68]
[1744821084970,29.61708795,128.45,128.44,11.68]
[1744821085886,33.78454002,128.46,128.44,11.68]
[1744821086087,0.063,128.49,128.45,21.83195755]
[1744821086268,29.67788599,128.49,128.45,21.83195755]
[1744821086583,21.83195755,128.48,128.44,33.51195755]
[1744821086890,33.84592844,128.49,128.45,0.28432314]
[1744821087217,21.83195755,128.48,128.45,0.28432314]
[1744821089075,29.61587597,128.47,128.45,0.28432314]
[1744821089889,42.69314646,128.47,128.45,0.28432314]
[1744821090282,7.78391842,128.47,128.45,0.28432314]
[1744821090693,7.78356176,128.48,128.45,35.19355118]
[1744821091089,26.063,128.49,128.46,34.90922804]
[1744821091291,0.063,128.49,128.48,0.28432314]
[1744821095280,0.063,128.49,128.46,34.90922804]
[1744821095483,0.063,128.49,128.47,0.28432314]
[1744821095993,0.063,128.49,128.47,35.19355118]
[1744821096892,0.063,128.49,128.46,35.33571275]
[1744821098294,0.063,128.49,128.48,0.42648471]
[1744821098467,0.063,128.49,128.48,134.6853616]
[1744821099271,0.063,128.49,128.48,146.3453616]
[1744821100290,0.063,128.49,128.48,154.12867417]
[1744821101075,0.063,128.49,128.48,119.21944613]
[1744821101292,0.063,128.49,128.48,154.12867417]
[1744821103996,0.063,128.49,128.48,127.69571274]
[1744821104188,0.063,128.49,128.48,135.0525406]
[1744821104695,0.063,128.49,128.48,154.12867417]
[1744821107798,0.063,128.51,128.49,19.07613357]
[1744821107987,0.063,128.51,128.5,35.33571275]
[1744821108997,0.063,128.51,128.5,134.6853616]
[1744821109186,0.063,128.51,128.5,148.70996276]
[1744821110493,0.063,128.52,128.51,88.89458965]
[1744821110807,0.063,128.52,128.51,169.59458964]
[1744821111198,0.063,128.52,128.51,151.11003452]
[1744821111515,0.063,128.54,128.53,26.42648471]
[1744821111715,0.063,128.54,128.53,59.86268739]
[1744821112224,0.063,128.54,128.53,30.73613357]
[1744821112400,0.063,128.54,128.53,52.51233625]
[1744821112993,0.063,128.54,128.53,33.86268739]
[1744821113195,0.063,128.54,128.53,41.64297214]
[1744821113406,0.063,128.54,128.53,33.86268739]
[1744821113602,0.063,128.54,128.53,41.64297214]
[1744821117913,0.063,128.54,128.53,41.50081057]
[1744821118215,0.063,128.54,128.53,60.292621]
[1744821119113,0.063,128.54,128.53,12.08648471]
[1744821119410,0.063,128.54,128.53,11.66]
[1744821119616,21.83920268,128.54,128.53,11.66]
[1744821120118,29.61888215,128.54,128.53,11.66]
[1744821120317,0.063,128.54,128.53,11.66]
[1744821120915,21.83920268,128.54,128.53,11.66]
[1744821121403,0.063,128.54,128.53,11.66]
[1744821122730,0.063,128.54,128.53,11.94432314]
[1744821124335,0.063,128.54,128.53,60.292621]
[1744821125019,0.063,128.55,128.54,0.42648471]
[1744821125217,0.063,128.55,128.54,102.90268738]
[1744821125413,2.7799694,128.57,128.55,19.07613357]
[1744821125741,2.7169694,128.57,128.56,0.42648471]
[1744821126327,2.7169694,128.57,128.56,29.98115658]
[1744821126727,2.7169694,128.57,128.56,0.28432314]
[1744821127026,2.7169694,128.57,128.53,11.66]
[1744821127027,32.27109881,128.57,128.53,11.66]
[1744821127329,21.77620268,128.54,128.53,11.80216157]
[1744821127506,21.77620268,128.54,128.53,11.94432314]
[1744821127711,21.77620268,128.56,128.53,11.94432314]
[1744821128016,21.77620268,128.56,128.53,11.66]
[1744821128212,29.5549485,128.56,128.53,11.66]
[1744821128427,21.77620268,128.54,128.53,11.94432314]
[1744821129304,21.77620268,128.54,128.48,80.69999999]
[1744821129506,21.77620268,128.49,128.48,11.64]
[1744821129907,21.77620268,128.49,128.43,11.64]
[1744821130210,21.77620268,128.46,128.45,0.14216157]